bitfinex/quotes_SOLUSD_20240915
["timestamp","ask_amount","ask_price","bid_price","bid_amount"]
[1726430824388,23.776884,133.35,133.33,3.640625]
[1726430824389,31.276184,133.35,133.33,3.640625]
[1726430827397,23.776884,133.35,133.33,3.640625]
[1726430827808,31.275984,133.35,133.33,3.640625]
[1726430828303,23.776884,133.35,133.33,3.640625]
[1726430831310,20.0,133.37,133.33,3.640625]
[1726430831808,27.4979,133.37,133.33,3.640625]
[1726430832395,7.4988,133.36,133.33,3.640625]
[1726430832719,7.4992,133.35,133.33,3.640625]
[1726430833425,23.776884,133.34,133.33,3.640625]
[1726430837216,385.6,133.37,133.33,3.640625]
[1726430837420,7.4966,133.4,133.33,22.390325]
[1726430837633,385.6,133.42,133.34,21.5568]
[1726430837796,393.0952,133.42,133.37,7.4978]
[1726430838633,7.4957,133.41,133.37,7.4978]
[1726430839211,385.6,133.42,133.38,7.497]
[1726430839527,23.776884,133.41,133.37,7.4979]
[1726430840000,393.0951,133.42,133.36,7.4984]
[1726430840201,20.0,133.41,133.36,7.4984]
[1726430841415,20.0,133.41,133.35,18.7463]
[1726430841416,23.776884,133.4,133.37,7.4978]
[1726430842514,23.776884,133.4,133.38,7.4973]
[1726430843601,23.776884,133.4,133.37,7.4978]
[1726430844702,20.0,133.41,133.38,7.4973]
[1726430844902,20.0,133.42,133.38,7.4973]
[1726430845422,23.776884,133.41,133.38,7.4973]
[1726430845801,23.776884,133.41,133.39,7.4968]
[1726430845996,23.776884,133.41,133.39,22.6273]
[1726430846219,7.494,133.44,133.39,22.6273]
[1726430846426,7.494,133.44,133.4,7.4962]
[1726430846427,23.776884,133.44,133.4,7.4962]
[1726430846926,23.776884,133.41,133.39,21.5568]
[1726430850419,23.776884,133.41,133.39,40.2979]
[1726430850623,23.776884,133.41,133.39,47.7946]
[1726430851138,7.494,133.44,133.39,47.7946]
[1726430852313,23.776884,133.43,133.39,47.7946]
[1726430852502,23.776884,133.43,133.4,7.4961]
[1726430852701,23.776884,133.44,133.41,7.4956]
[1726430853104,20.0,133.45,133.41,7.4956]
[1726430854110,23.776884,133.44,133.41,7.4956]
[1726430855034,20.0,133.46,133.39,40.2985]
[1726430855226,7.4944,133.44,133.39,40.2985]
[1726430855727,7.4944,133.44,133.39,47.795]
[1726430855927,7.4935,133.45,133.4,7.4961]
[1726430856111,23.776884,133.44,133.4,7.4961]
[1726430859738,23.776884,133.45,133.39,47.7951]
[1726430859947,23.776884,133.43,133.36,41.6895]
[1726430860527,7.4955,133.42,133.37,7.4978]
[1726430860845,23.776884,133.41,133.37,7.4978]
[1726430861949,23.776884,133.39,133.36,41.6895]
[1726430862438,23.776884,133.39,133.36,49.1878]
[1726430862639,23.776884,133.4,133.36,49.1878]
[1726430865238,23.776884,133.37,133.36,16.5817]
[1726430865547,23.776884,133.37,133.34,7.7876089]
[1726430865842,23.776884,133.38,133.34,7.7876089]
[1726430868751,23.776884,133.38,133.35,7.499]
[1726430870859,23.776884,133.39,133.35,7.499]
[1726430871761,23.776884,133.41,133.37,7.4975]
[1726430871961,31.273084,133.4,133.36,7.4984]
[1726430872138,23.776884,133.39,133.35,18.7467]
[1726430872641,31.273684,133.39,133.35,18.7467]
[1726430874256,31.273684,133.39,133.34,0.2881089]
[1726430875254,31.273684,133.39,133.35,18.7467]
[1726430876274,23.776884,133.37,133.34,0.2881089]
[1726430877149,31.275184,133.37,133.34,0.2881089]
[1726430877343,7.4986,133.36,133.34,0.2881089]
[1726430877663,23.776884,133.35,133.34,0.2881089]
[1726430880070,31.275884,133.35,133.34,0.2881089]
[1726430881153,23.776884,133.35,133.34,0.2881089]
[1726430882352,7.498,133.37,133.34,0.2881089]
[1726430883054,20.0,133.38,133.34,0.2881089]
[1726430883658,7.499,133.35,133.34,0.2881089]
[1726430883861,51.275884,133.35,133.34,0.2881089]
[1726430885977,43.776884,133.35,133.34,0.2881089]
[1726430886154,43.776884,133.35,133.33,3.640625]
[1726430886355,43.776884,133.34,133.33,3.640625]
[1726430887273,51.276484,133.34,133.33,3.640625]
[1726430895577,51.276484,133.34,133.3,9.1807648]
[1726430895578,23.776884,133.31,133.3,9.1807648]
[1726430895980,31.278184,133.31,133.3,9.1807648]
[1726430896383,23.776884,133.31,133.3,9.1807648]
[1726430898498,20.0,133.33,133.3,9.1807648]
[1726430898688,27.4996,133.34,133.3,9.1807648]
[1726430899598,27.4996,133.34,133.3,16.6824648]
[1726430899765,385.6,133.38,133.3,9.1807648]
[1726430899970,7.4989,133.36,133.31,7.5008]
[1726430900190,385.6,133.38,133.31,7.5008]
[1726430900905,20.0,133.37,133.31,7.5008]
[1726430901188,23.776884,133.36,133.31,7.5008]
[1726430901393,23.776884,133.34,133.31,7.5008]
[1726430902286,23.776884,133.35,133.31,7.5008]
[1726430903690,23.776884,133.35,133.31,22.8445]
[1726430909301,31.276384,133.35,133.31,15.3437]
[1726430911890,23.776884,133.33,133.31,15.3437]
[1726430914003,31.277084,133.33,133.31,15.3437]
[1726430914375,31.277084,133.33,133.3,9.1807648]
[1726430914796,23.776884,133.31,133.3,9.1807648]
[1726430915878,23.776884,133.31,133.3,13.32139114]
[1726430916777,20.0,133.35,133.3,20.82319114]
[1726430917079,20.0,133.35,133.32,7.5003]
[1726430917280,385.6,133.36,133.32,7.5003]
[1726430918780,23.776884,133.35,133.32,7.5003]
[1726430919699,23.776884,133.36,133.32,7.5003]
[1726430920475,31.275484,133.36,133.31,13.6987]
[1726430920678,31.275484,133.36,133.32,4.1402983]
[1726430920902,23.776884,133.36,133.32,23.8376]
[1726430922403,31.275484,133.36,133.32,16.337]
[1726430922579,7.4991,133.35,133.32,16.337]
[1726430922784,23.776884,133.34,133.32,16.337]
[1726430925210,20.0,133.38,133.33,4.14005684]
[1726430925383,20.0,133.38,133.32,16.337]
[1726430925582,20.0,133.38,133.33,4.14005354]
[1726430925800,7.4979,133.37,133.32,23.8376]
[1726430926795,23.776884,133.36,133.32,23.8376]
[1726430927104,20.0,133.38,133.32,16.337]
[1726430927105,31.275984,133.35,133.32,16.337]
[1726430927308,23.776884,133.35,133.32,16.337]
[1726430927716,31.275984,133.35,133.32,16.337]
[1726430930016,23.776884,133.35,133.32,16.337]
[1726430930503,23.776884,133.36,133.32,16.337]
[1726430931104,20.0,133.38,133.33,4.14005519]
[1726430931307,20.0,133.38,133.34,7.4994]
[1726430932188,20.0,133.38,133.34,26.2477]
[1726430932793,23.776884,133.37,133.34,26.2477]
[1726430933307,23.776884,133.37,133.32,16.337]
[1726430933308,7.4985,133.36,133.33,6.62201849]
[1726430933621,23.776884,133.34,133.32,16.337]
[1726430933799,7.499,133.35,133.32,16.337]
[1726430934114,23.776884,133.34,133.32,16.337]
[1726430937228,23.776884,133.35,133.32,23.8376]
[1726430938655,23.776884,133.36,133.33,7.5001]
[1726430938826,23.776884,133.36,133.32,23.8376]
[1726430940634,31.276184,133.35,133.32,16.337]
[1726430941238,7.4996,133.34,133.32,16.337]
[1726430941456,23.776884,133.33,133.3,9.1807648]
[1726430941617,23.776884,133.31,133.3,9.1807648]
[1726430942028,23.776884,133.31,133.3,13.32082219]
[1726430942345,23.776884,133.31,133.3,9.1807648]
[1726430945258,31.278184,133.31,133.3,9.1807648]
[1726430946733,51.279284,133.29,133.26,0.2504648]
[1726430946957,51.279284,133.29,133.27,4.14083491]
[1726430947128,43.776884,133.29,133.26,0.2504648]
[1726430947334,7.5014,133.31,133.26,7.7540648]
[1726430947542,20.0,133.3,133.27,4.02332034]
[1726430947763,20.0,133.3,133.26,14.37940066]
[1726430947931,20.0,133.3,133.26,7.2540648]
[1726430948251,20.0,133.35,133.27,16.5823]
[1726430948861,20.2504648,133.36,133.27,35.3402]
[1726430949037,7.5007,133.32,133.28,7.5029]
[1726430949949,7.5007,133.32,133.27,42.8436]
[1726430950363,7.5008,133.32,133.27,24.0858]
[1726430950872,23.776884,133.31,133.27,24.0858]
[1726430951158,31.278184,133.31,133.27,16.5823]
[1726430952148,7.5019,133.3,133.27,16.5823]
[1726430952468,23.776884,133.29,133.27,16.5823]
[1726430952772,23.776884,133.27,133.26,6.6564]
[1726430954155,23.776884,133.27,133.26,14.1605]
[1726430954563,27.5004,133.33,133.28,7.5029]
[1726430954852,7.5011,133.32,133.27,22.8162]
[1726430955860,31.278184,133.31,133.27,15.3128]
[1726430956059,23.776884,133.31,133.27,15.3128]
[1726430956757,7.5017,133.31,133.27,15.3128]
[1726430956958,23.776884,133.3,133.27,15.3128]
[1726430957130,23.776884,133.32,133.27,15.3128]
[1726430957742,23.776884,133.32,133.27,22.8159]
[1726430957941,23.776884,133.32,133.27,15.3128]
[1726430958141,20.0,133.34,133.28,18.7573]
[1726430958653,0.2504648,133.36,133.31,7.501]
[1726430958837,0.2504648,133.36,133.31,15.01180343]
[1726430959031,0.2504648,133.36,133.32,15.3128]
[1726430959644,0.2504648,133.36,133.32,16.81186503]
[1726430960063,0.2504648,133.36,133.34,7.4994]
[1726430961247,0.2504648,133.36,133.32,15.3128]
[1726430961450,0.2504648,133.36,133.33,7.5001]
[1726430961651,0.2504648,133.36,133.32,15.3128]
[1726430961870,24.0273488,133.36,133.32,22.8134]
[1726430962743,24.0273488,133.36,133.32,15.3128]
[1726430962945,20.0,133.35,133.3,6.1991]
[1726430963239,24.0273488,133.36,133.3,6.1991]
[1726430963240,23.776884,133.32,133.3,6.1991]
[1726430963442,23.776884,133.32,133.28,22.8157]
[1726430963935,23.776884,133.32,133.28,15.3128]
[1726430964257,31.278084,133.32,133.28,15.3128]
[1726430964458,23.776884,133.3,133.28,15.3128]
[1726430964943,393.3489648,133.36,133.29,18.7547]
[1726430965142,20.0,133.35,133.31,7.5012]
[1726430965457,385.8504648,133.36,133.32,7.5005]
[1726430966246,385.8504648,133.36,133.28,15.3128]
[1726430966247,385.8504648,133.36,133.33,7.4996]
[1726430967231,385.8504648,133.36,133.34,7.4995]
[1726430967435,385.8504648,133.36,133.34,22.8123]
[1726430968163,385.8504648,133.36,133.35,7.499]
[1726430968475,385.8504648,133.36,133.35,18.7476]
[1726430968763,385.8504648,133.36,133.34,15.3128]
[1726430968962,385.8504648,133.36,133.33,7.5001]
[1726430969146,20.0,133.35,133.28,21.5119]
[1726430969855,23.776884,133.34,133.28,21.5119]
[1726430970364,23.776884,133.34,133.3,7.5018]
[1726430972067,23.776884,133.34,133.29,18.756]
[1726430972271,23.776884,133.34,133.32,7.5002]
[1726430972948,23.776884,133.34,133.31,18.7521]
[1726430973346,43.776884,133.35,133.31,18.7521]
[1726430973867,51.275884,133.35,133.31,18.7521]
[1726430974055,43.776884,133.35,133.31,18.7521]
[1726430974958,43.776884,133.35,133.31,26.2534]
[1726430975159,23.776884,133.35,133.32,7.5007]
[1726430976643,23.776884,133.35,133.23,17.81252882]
[1726430976644,0.2504648,133.36,133.35,7.499]
[1726430981585,0.2504648,133.4,133.39,7.4968]
[1726430982071,0.2504648,133.4,133.39,26.2388]
[1726430982758,0.2504648,133.4,133.39,41.965]
[1726430983446,0.2504648,133.4,133.39,48.0106]
[1726430991681,0.2504648,133.4,133.39,41.965]
[1726431011439,0.2504648,133.4,133.39,26.2388]
[1726431012034,0.2504648,133.4,133.37,7.4974]
[1726431012207,24.0273488,133.4,133.36,7.4984]
[1726431012407,31.5236488,133.4,133.35,18.7464]
[1726431012615,31.5236488,133.4,133.35,26.2452]
[1726431012813,0.2504648,133.4,133.35,26.2452]
[1726431013122,0.2504648,133.4,133.36,7.4981]
[1726431014714,0.2504648,133.4,133.35,18.7464]
[1726431014715,0.2504648,133.4,133.37,7.4979]
[1726431015200,0.2504648,133.4,133.36,7.4984]
[1726431017228,0.2504648,133.4,133.35,18.7464]
[1726431017229,0.2504648,133.4,133.37,7.4978]
[1726431017529,0.2504648,133.4,133.37,18.7435]
[1726431018434,0.2504648,133.4,133.39,7.4968]
[1726431019305,0.2504648,133.4,133.38,7.4973]
[1726431026428,0.2504648,133.4,133.39,7.4968]
[1726431026914,0.2504648,133.4,133.39,11.51667048]
[1726431027331,0.2504648,133.4,133.39,11.51640733]
[1726431028032,0.2504648,133.4,133.39,7.4968]
[1726431028209,0.2504648,133.4,133.39,11.51639931]
[1726431032638,0.2504648,133.4,133.39,7.4968]
[1726431033315,0.2504648,133.4,133.39,11.51644276]
[1726431033836,0.2504648,133.4,133.39,7.4968]
[1726431034332,0.2504648,133.4,133.39,22.63636108]
[1726431034508,0.2504648,133.4,133.39,7.4968]
[1726431042539,0.2504648,133.4,133.39,59.57400862]
[1726431043819,0.2504648,133.4,133.39,58.29396108]
[1726431044518,6.48e-05,133.4,133.39,58.29396108]
[1726431044729,0.2504648,133.44,133.39,94.82736108]
[1726431044930,0.2504648,133.44,133.43,22.63406108]
[1726431045218,0.2504648,133.44,133.43,7.4945]
[1726431046428,0.2504648,133.44,133.43,26.2309]
[1726431050418,0.2504648,133.44,133.43,18.7364]
[1726431053045,0.2504648,133.44,133.41,7.4956]
[1726431053541,0.2504648,133.44,133.4,7.4961]
[1726431054046,23.776884,133.43,133.36,22.6521]
[1726431054545,23.776884,133.43,133.36,16.6271]
[1726431055344,31.271484,133.43,133.38,7.4973]
[1726431057329,23.776884,133.43,133.39,7.4966]
[1726431060547,0.2504648,133.44,133.37,15.13956108]
[1726431060841,0.2504648,133.44,133.42,7.495]
[1726431061226,0.2504648,133.44,133.43,7.4945]
[1726431066330,0.2504648,133.44,133.43,22.63406108]
[1726431068155,0.2504648,133.44,133.43,7.4945]
[1726431069938,0.2504648,133.44,133.41,34.0425]
[1726431071359,0.2504648,133.44,133.43,7.4945]
[1726431073467,0.2504648,133.44,133.42,7.495]
[1726431074039,0.2504648,133.44,133.41,18.7384]
[1726431074259,0.2504648,133.44,133.38,13.02097305]
[1726431074260,23.776884,133.43,133.39,7.4963]
[1726431075669,24.0273488,133.44,133.4,18.7393]
[1726431076355,24.0273488,133.44,133.41,7.4951]
[1726431076356,0.2504648,133.44,133.41,7.4951]
[1726431077864,24.0273488,133.44,133.41,7.4951]
[1726431080848,24.0273488,133.44,133.42,7.495]
[1726431083476,24.0273488,133.44,133.43,7.4945]
[1726431103387,24.0273488,133.44,133.42,26.2317]
[1726431103785,24.0273488,133.44,133.39,25.1306]
[1726431103986,24.0273488,133.44,133.39,18.7413]
[1726431104202,24.0273488,133.44,133.4,30.0]
[1726431104406,31.5213488,133.44,133.4,30.0]
[1726431104571,31.5213488,133.44,133.39,26.2379]
[1726431105078,24.0273488,133.44,133.39,18.7413]
[1726431105982,24.0273488,133.44,133.41,7.4955]
[1726431107394,0.2504648,133.44,133.41,7.4955]
[1726431109482,0.2504648,133.44,133.42,1.4863895]
[1726431109682,0.2504648,133.44,133.41,7.4955]
[1726431110289,0.2504648,133.44,133.42,7.495]
[1726431110697,0.2504648,133.44,133.43,8.97988691]
[1726431111100,0.2504648,133.44,133.43,7.4945]
[1726431126328,0.2504648,133.44,133.42,7.495]
[1726431126502,0.2504648,133.44,133.41,26.2339]
[1726431129704,0.2504648,133.44,133.41,18.7384]
[1726431130938,0.2504648,133.44,133.41,26.234]
[1726431135532,0.2504648,133.44,133.42,7.495]
[1726431136031,0.2504648,133.44,133.41,26.234]
[1726431136417,0.2504648,133.44,133.41,18.7384]
[1726431136623,23.776884,133.43,133.4,7.4961]
[1726431138219,24.0273488,133.44,133.4,7.4961]
[1726431141024,31.5213488,133.44,133.4,7.4961]
[1726431141371,24.0273488,133.44,133.4,7.4961]
[1726431143918,31.5217488,133.44,133.39,7.4967]
[1726431144846,7.4945,133.43,133.39,7.4967]
[1726431145232,23.776884,133.42,133.39,7.4967]
[1726431146248,31.272184,133.42,133.38,18.7428]
[1726431147246,31.272184,133.42,133.38,26.24]
[1726431148625,23.776884,133.42,133.38,26.24]
[1726431148952,23.776884,133.42,133.39,7.4965]
[1726431149633,23.776884,133.42,133.4,7.496]
[1726431152825,23.776884,133.42,133.41,7.4956]
[1726431153029,0.2504648,133.44,133.39,15.13956108]
[1726431153243,0.2504648,133.44,133.39,21.57073165]
[1726431153557,0.2504648,133.44,133.42,7.495]
[1726431154248,0.2504648,133.44,133.42,26.2321]
[1726431156556,0.2504648,133.44,133.43,7.4945]
[1726431161074,0.2504648,133.44,133.42,26.2321]
[1726431161458,0.2504648,133.44,133.42,18.7371]
[1726431161850,0.2504648,133.44,133.4,7.4961]
[1726431162377,0.2504648,133.44,133.41,7.4954]
[1726431163643,0.2504648,133.44,133.42,7.495]
[1726431164044,0.2504648,133.44,133.43,7.88405676]
[1726431164268,0.2504648,133.44,133.42,7.495]
[1726431169470,0.2504648,133.44,133.43,7.4945]
[1726431170053,0.2504648,133.44,133.43,22.63406108]
[1726431170249,0.2504648,133.44,133.43,29.21736108]
[1726431170782,0.2504648,133.44,133.43,14.0778]
[1726431174789,0.2504648,133.44,133.43,29.21736108]
[1726431174987,0.2504648,133.44,133.43,14.0778]
[1726431175482,0.2504648,133.44,133.43,29.21736108]
[1726431177490,0.2504648,133.44,133.43,49.21736108]
[1726431177689,0.2504648,133.44,133.43,50.25927112]
[1726431177893,0.2504648,133.44,133.43,54.2770144]
[1726431179189,0.2504648,133.44,133.43,38.09554328]
[1726431179391,0.2504648,133.44,133.43,34.0778]
[1726431180663,0.2504648,133.44,133.43,14.0778]
[1726431180969,0.2504648,133.44,133.43,29.21736108]
[1726431181163,0.2504648,133.44,133.43,49.21736108]
[1726431181370,0.2504648,133.44,133.43,53.2351374]
[1726431182166,0.2504648,133.48,133.43,53.2351374]
[1726431182167,0.2504648,133.48,133.47,7.4923]
[1726431182382,0.2504648,133.48,133.47,58.48156108]
[1726431183296,0.2504648,133.48,133.47,77.21236108]
[1726431184369,0.2504648,133.48,133.47,62.0728]
[1726431185301,0.2504648,133.48,133.47,77.21236108]
[1726431185771,0.2504648,133.48,133.47,83.60886108]
[1726431198075,0.2504648,133.48,133.47,68.4693]
[1726431198273,0.2504648,133.48,133.47,83.60886108]
[1726431212485,0.2504648,133.48,133.47,85.10639592]
[1726431213624,6.48e-05,133.48,133.47,85.10639592]
[1726431213812,6.48e-05,133.48,133.47,89.12234669]
[1726431214113,0.2504648,133.52,133.51,7.49]
[1726431214295,0.2504648,133.52,133.51,42.62956108]
[1726431214813,0.2504648,133.52,133.51,46.2151]
[1726431215009,0.2504648,133.52,133.51,62.85206338]
[1726431215312,260.1504648,133.56,133.55,7.4878]
[1726431215313,0.2504648,133.56,133.55,7.4878]
[1726431215815,0.2504648,133.56,133.55,8.98432988]
[1726431215985,0.2504648,133.56,133.55,44.12389096]
[1726431216190,0.2504648,133.56,133.55,62.84339096]
[1726431216389,0.2504648,133.56,133.55,47.70382988]
[1726431218098,0.2504648,133.56,133.55,46.2073]
[1726431218715,0.2504648,133.56,133.55,61.34686108]
[1726431220518,0.2504648,133.6,133.55,61.34686108]
[1726431220519,0.2504648,133.6,133.59,7.4855]
[1726431220695,0.2504648,133.6,133.59,26.1994]
[1726431222412,276.7922648,133.64,133.59,26.1994]
[1726431222413,23.776884,133.63,133.59,26.1994]
[1726431222609,0.1730884,133.6,133.59,26.1994]
[1726431230703,0.1730884,133.6,133.59,61.33896108]
[1726431232310,0.1730884,133.6,133.59,46.1994]
[1726431237720,0.1730884,133.6,133.59,61.33896108]
[1726431240536,0.1730884,133.6,133.59,46.1994]
[1726431249050,0.1730884,133.6,133.59,61.33896108]
[1726431257027,0.0476884,133.6,133.59,61.33896108]
[1726431257549,0.0476884,133.6,133.59,46.1994]
[1726431257747,0.0476884,133.6,133.59,61.33896108]
[1726431259450,0.0476884,133.6,133.59,65.35130794]
[1726431260435,0.2590252,133.63,133.62,7.4839]
[1726431260648,0.2590252,133.63,133.62,27.4839]
[1726431264538,0.2590252,133.63,133.62,31.49585399]
[1726431265338,0.2590252,133.63,133.62,31.49580043]
[1726431265844,0.2590252,133.63,133.62,27.4839]
[1726431266232,0.2590252,133.63,133.62,31.4958253]
[1726431269462,0.2590252,133.63,133.62,27.4839]
[1726431269667,0.2590252,133.63,133.61,7.4844]
[1726431270534,0.2590252,133.63,133.6,7.4849]
[1726431271561,23.776884,133.62,133.59,7.4854]
[1726431271937,24.0359092,133.63,133.59,7.4854]
[1726431272947,0.2590252,133.63,133.6,7.485]
[1726431274050,0.2590252,133.63,133.61,7.4844]
[1726431283046,23.776884,133.64,133.61,7.4844]
[1726431283248,0.2143862,133.63,133.61,7.4844]
[1726431283847,0.2143862,133.63,133.6,7.4849]
[1726431286268,0.2143862,133.63,133.62,7.4839]
[1726431286563,0.2143862,133.63,133.61,7.4843]
[1726431288262,0.2143862,133.63,133.62,7.4839]
[1726431293070,0.2143862,133.63,133.57,20.0]
[1726431293377,23.9912702,133.63,133.59,7.4854]
[1726431294159,23.9912702,133.63,133.6,7.4849]
[1726431294371,0.2143862,133.63,133.6,7.4849]
[1726431300761,0.2143862,133.63,133.61,7.4844]
[1726431300958,0.2143862,133.63,133.62,7.9170592]
[1726431301290,0.2143862,133.63,133.62,7.4839]
[1726431301667,0.2143862,133.63,133.62,42.62346108]
[1726431302079,0.2143862,133.63,133.62,27.4839]
[1726431302689,0.2143862,133.63,133.62,42.62346108]
[1726431302885,0.2143862,133.63,133.62,27.4839]
[1726431303087,0.2143862,133.63,133.62,42.62346108]
[1726431303292,0.2143862,133.63,133.62,57.81296108]
[1726431303793,0.2143862,133.63,133.62,42.6734]
[1726431305767,0.2143862,133.63,133.62,27.4839]
[1726431305977,0.2143862,133.63,133.62,7.4839]
[1726431308381,0.2143862,133.63,133.61,7.4843]
[1726431311279,0.2143862,133.63,133.62,7.4839]
[1726431312981,0.2143862,133.63,133.62,42.62346108]
[1726431317084,0.2143862,133.63,133.62,7.4839]
[1726431317301,0.2143862,133.63,133.59,6.1149]
[1726431317503,0.2143862,133.63,133.58,15.1895]
[1726431317778,0.2143862,133.63,133.6,7.4845]
[1726431317978,0.2143862,133.63,133.62,7.4839]
[1726431318986,0.2143862,133.63,133.61,7.4843]
[1726431319196,0.2143862,133.63,133.59,20.0]
[1726431319592,0.2143862,133.63,133.61,7.4844]
[1726431320504,0.2143862,133.63,133.62,7.4839]
[1726431320706,0.2143862,133.63,133.61,7.4843]
[1726431322624,0.2143862,133.63,133.59,7.4855]
[1726431322789,0.2143862,133.63,133.58,7.4861]
[1726431322790,23.776884,133.62,133.58,7.4861]
[1726431325914,23.776884,133.62,133.59,7.4854]
[1726431326120,23.9912702,133.63,133.59,7.4854]
[1726431328225,31.4745702,133.63,133.58,7.486]
[1726431329314,23.9912702,133.63,133.59,7.4855]
[1726431329515,0.2143862,133.63,133.6,7.4848]
[1726431332917,0.2143862,133.63,133.61,7.4844]
[1726431333630,0.2143862,133.63,133.62,7.4839]
[1726431341307,0.2143862,133.63,133.6,7.4849]
[1726431341712,0.2143862,133.63,133.61,7.4843]
[1726431349715,0.2143862,133.63,133.58,24.01225436]
[1726431349914,0.2143862,133.63,133.58,20.0]
[1726431350137,0.2143862,133.63,133.6,7.4849]
[1726431351627,0.2143862,133.63,133.61,7.4844]
[1726431355225,0.2143862,133.63,133.62,7.4839]
[1726431371289,0.2143862,133.63,133.6,7.4847]
[1726431371452,0.2143862,133.63,133.59,7.4854]
[1726431372149,0.2143862,133.63,133.6,7.4849]
[1726431373370,0.2143862,133.63,133.61,7.4844]
[1726431373570,0.2143862,133.63,133.62,7.4839]
[1726431374189,0.2143862,133.63,133.59,16.2925]
[1726431374351,0.2143862,133.63,133.62,7.4839]
[1726431393579,0.2143862,133.63,133.62,28.08586132]
[1726431393779,0.2143862,133.63,133.62,43.2254224]
[1726431394276,0.2143862,133.63,133.62,58.08836108]
[1726431394501,0.2143862,133.63,133.62,42.9488]
[1726431397302,0.2143862,133.63,133.62,58.08836108]
[1726431397900,0.2143862,133.63,133.62,42.9488]
[1726431401804,0.2143862,133.63,133.62,58.08836108]
[1726431408616,0.2143862,133.63,133.62,59.58440307]
[1726431409402,8.62e-05,133.63,133.62,59.58417914]
[1726431409599,8.62e-05,133.63,133.62,58.08836108]
[1726431410103,8.62e-05,133.63,133.62,57.96490138]
[1726431410524,0.2511457,133.66,133.65,27.4822]
[1726431410818,0.2511457,133.66,133.65,42.62176108]
[1726431411191,0.2511457,133.66,133.65,27.4822]
[1726431411722,0.2511457,133.66,133.65,7.4822]
[1726431412419,0.2511457,133.66,133.65,11.49256858]
[1726431412617,0.2511457,133.66,133.65,15.50326725]
[1726431414824,0.2511457,133.66,133.65,11.49256858]
[1726431415003,0.2511457,133.66,133.65,15.50299891]
[1726431416032,0.2511457,133.66,133.65,50.64255999]
[1726431418813,0.2511457,133.66,133.65,50.64239639]
[1726431421332,0.2511457,133.66,133.65,31.49256858]
[1726431421506,0.2511457,133.66,133.65,35.50278088]
[1726431422232,0.2511457,133.66,133.65,15.50278088]
[1726431422434,0.2511457,133.66,133.65,7.4822]
[1726431424615,0.2511457,133.66,133.65,11.49282036]
[1726431428339,0.2511457,133.66,133.65,7.4822]
[1726431428728,0.2511457,133.66,133.65,11.4924699]
[1726431429234,0.2511457,133.66,133.65,46.63203098]
[1726431431432,0.2511457,133.66,133.65,31.4924699]
[1726431434845,0.2511457,133.66,133.65,31.49244985]
[1726431435227,0.2511457,133.66,133.65,50.64226096]
[1726431438443,0.2511457,133.66,133.65,46.63201093]
[1726431438750,0.2511457,133.66,133.65,50.64199886]
[1726431439126,0.2511457,133.66,133.65,76.63201093]
[1726431439552,0.2511457,133.66,133.65,80.64197213]
[1726431439732,0.2511457,133.66,133.65,65.50241105]
[1726431440555,0.2511457,133.66,133.65,80.64197213]
[1726431441682,0.2511457,133.66,133.65,50.64197213]
[1726431442363,0.2511457,133.7,133.69,7.4799]
[1726431443344,0.2511457,133.7,133.69,11.48959802]
[1726431443729,0.2511457,133.7,133.69,7.4799]
[1726431445024,0.2511457,133.7,133.69,26.62862125]
[1726431445223,0.1257457,133.7,133.69,26.62862125]
[1726431445439,0.1257457,133.7,133.69,46.62862125]
[1726431445745,0.1257457,133.7,133.69,42.61946108]
[1726431445943,0.1257457,133.7,133.69,31.48847459]
[1726431446631,0.1257457,133.7,133.69,61.48847459]
[1726431447551,0.1257457,133.7,133.69,31.48847459]
[1726431447730,0.1257457,133.7,133.69,46.62803567]
[1726431448657,0.1257457,133.7,133.69,76.62803567]
[1726431449140,0.1257457,133.7,133.69,72.61946108]
[1726431449459,0.1257457,133.7,133.69,76.62813439]
[1726431450763,0.1257457,133.7,133.69,72.61946108]
[1726431451137,0.1257457,133.7,133.69,76.6279179]
[1726431452365,4.57e-05,133.7,133.69,76.6279179]
[1726431452568,0.2511457,133.74,133.73,7.4777]
[1726431458640,0.2511457,133.74,133.73,22.61726108]